[Event "*** Biggest EVER Titled Tuesday"]
[Site "Chess.com"]
[Date "2018.04.17"]
[Round "7"]
[White "GeorgMeier"]
[Black "maciek_92"]
[Result "1/2-1/2"]
[WhiteElo "2765"]
[BlackElo "2585"]
[TimeControl "180+2"]
[EndTime "14:42:24 PDT"]
[Termination "Game drawn - insufficient material"]

1. Nf3 {[%clk 0:03:01.9]} 1... Nf6 {[%clk 0:03:00.1]} 2. g3 {[%clk 0:03:02.7]}
2... b6 {[%clk 0:02:56.2]} 3. Bg2 {[%clk 0:03:04.6]} 3... Bb7 {[%clk 0:02:57.6]}
4. O-O {[%clk 0:03:05.7]} 4... e6 {[%clk 0:02:58.6]} 5. c4 {[%clk 0:03:06.9]}
5... Be7 {[%clk 0:02:59.8]} 6. Nc3 {[%clk 0:03:08.8]} 6... O-O {[%clk
0:03:00.6]} 7. d4 {[%clk 0:03:10.3]} 7... Ne4 {[%clk 0:03:00.5]} 8. Bd2 {[%clk
0:03:11.8]} 8... d5 {[%clk 0:02:59.2]} 9. cxd5 {[%clk 0:03:02.5]} 9... exd5
{[%clk 0:02:58.6]} 10. Bf4 {[%clk 0:03:03.3]} 10... a6 {[%clk 0:02:52.5]} 11.
Qb3 {[%clk 0:03:03.3]} 11... Nxc3 {[%clk 0:02:46.2]} 12. bxc3 {[%clk 0:03:04]}
12... Bd6 {[%clk 0:02:46.6]} 13. Ne5 {[%clk 0:03:04]} 13... Bxe5 {[%clk
0:02:27]} 14. Bxe5 {[%clk 0:03:01.6]} 14... Nd7 {[%clk 0:02:26]} 15. Bf4 {[%clk
0:03:01.7]} 15... Nf6 {[%clk 0:02:21.7]} 16. Bg5 {[%clk 0:03:01.2]} 16... Re8
{[%clk 0:02:22.6]} 17. e3 {[%clk 0:03:02.1]} 17... Re6 {[%clk 0:02:19.5]} 18.
Rfc1 {[%clk 0:02:47.7]} 18... h6 {[%clk 0:02:19.9]} 19. Bxf6 {[%clk 0:02:48.1]}
19... Rxf6 {[%clk 0:02:20.2]} 20. a4 {[%clk 0:02:42.6]} 20... a5 {[%clk
0:02:19.9]} 21. c4 {[%clk 0:02:38.3]} 21... dxc4 {[%clk 0:02:17.1]} 22. Qxc4
{[%clk 0:02:40.2]} 22... Bxg2 {[%clk 0:02:17.6]} 23. Kxg2 {[%clk 0:02:42.1]}
23... c6 {[%clk 0:02:19]} 24. Rab1 {[%clk 0:02:41]} 24... Ra7 {[%clk 0:02:02.9]}
25. Rb3 {[%clk 0:02:34.8]} 25... Rb7 {[%clk 0:01:40.5]} 26. Rcb1 {[%clk
0:02:35.8]} 26... Rb8 {[%clk 0:01:32.8]} 27. R1b2 {[%clk 0:02:32.8]} 27... h5
{[%clk 0:01:32.9]} 28. h3 {[%clk 0:02:28]} 28... g6 {[%clk 0:00:50.4]} 29. Rc3
{[%clk 0:02:03.4]} 29... Qd7 {[%clk 0:00:42.8]} 30. Rcb3 {[%clk 0:02:01.4]}
30... Qf5 {[%clk 0:00:28.1]} 31. Qe2 {[%clk 0:01:43.8]} 31... Qd5+ {[%clk
0:00:22.2]} 32. Kg1 {[%clk 0:01:40.7]} 32... c5 {[%clk 0:00:21.5]} 33. Rb5
{[%clk 0:01:29.9]} 33... Rc8 {[%clk 0:00:13.5]} 34. h4 {[%clk 0:01:18]} 34...
Qd7 {[%clk 0:00:10.1]} 35. dxc5 {[%clk 0:01:16]} 35... bxc5 {[%clk 0:00:12]} 36.
Rd2 {[%clk 0:01:08.3]} 36... Qf5 {[%clk 0:00:09.8]} 37. Qc4 {[%clk 0:00:59.7]}
37... Re6 {[%clk 0:00:07.9]} 38. Kg2 {[%clk 0:00:56.9]} 38... Re4 {[%clk
0:00:08.3]} 39. Qa2 {[%clk 0:00:49.8]} 39... Qf6 {[%clk 0:00:06.2]} 40. Qc2
{[%clk 0:00:37.3]} 40... Qc6 {[%clk 0:00:05.9]} 41. Kg1 {[%clk 0:00:33.3]} 41...
Re6 {[%clk 0:00:06.3]} 42. Qc4 {[%clk 0:00:24.8]} 42... Re4 {[%clk 0:00:07]} 43.
Qc2 {[%clk 0:00:25.9]} 43... c4 {[%clk 0:00:07.7]} 44. Rxa5 {[%clk 0:00:26.1]}
44... Rce8 {[%clk 0:00:07.2]} 45. Rb5 {[%clk 0:00:24.2]} 45... Qc7 {[%clk
0:00:06.1]} 46. Rg5 {[%clk 0:00:20.8]} 46... c3 {[%clk 0:00:06]} 47. Rd3 {[%clk
0:00:19.4]} 47... Rc4 {[%clk 0:00:07.5]} 48. a5 {[%clk 0:00:20.5]} 48... Rb8
{[%clk 0:00:08.7]} 49. Rd4 {[%clk 0:00:14.3]} 49... Rb2 {[%clk 0:00:08.3]} 50.
Qc1 {[%clk 0:00:12.2]} 50... Rxd4 {[%clk 0:00:08.8]} 51. exd4 {[%clk 0:00:14.1]}
51... c2 {[%clk 0:00:09.9]} 52. Rc5 {[%clk 0:00:13.9]} 52... Qb8 {[%clk
0:00:08.9]} 53. Kh2 {[%clk 0:00:13.6]} 53... Qb3 {[%clk 0:00:09]} 54. a6 {[%clk
0:00:13.6]} 54... Ra2 {[%clk 0:00:10.2]} 55. a7 {[%clk 0:00:13.8]} 55... Qb1
{[%clk 0:00:11.4]} 56. Qxc2 {[%clk 0:00:11.1]} 56... Qxc2 {[%clk 0:00:08.7]} 57.
Rxc2 {[%clk 0:00:10.7]} 57... Rxa7 {[%clk 0:00:09.9]} 58. Kg2 {[%clk 0:00:12.2]}
58... Ra3 {[%clk 0:00:10.1]} 59. Rd2 {[%clk 0:00:11]} 59... Kf8 {[%clk
0:00:10.6]} 60. Kf1 {[%clk 0:00:12.5]} 60... Ke7 {[%clk 0:00:12.5]} 61. Ke2
{[%clk 0:00:14.4]} 61... Kd6 {[%clk 0:00:13.9]} 62. Rd3 {[%clk 0:00:16.3]} 62...
Ra2+ {[%clk 0:00:14.4]} 63. Ke3 {[%clk 0:00:17.3]} 63... Ra7 {[%clk 0:00:16.3]}
64. Rc3 {[%clk 0:00:17.7]} 64... Re7+ {[%clk 0:00:14.9]} 65. Kd3 {[%clk
0:00:18]} 65... Ra7 {[%clk 0:00:15.9]} 66. Rb3 {[%clk 0:00:18.4]} 66... Ra2
{[%clk 0:00:11.6]} 67. Ke3 {[%clk 0:00:18.9]} 67... Ra7 {[%clk 0:00:11.9]} 68.
Rb5 {[%clk 0:00:18.9]} 68... Kc6 {[%clk 0:00:11.9]} 69. Re5 {[%clk 0:00:18]}
69... Kd6 {[%clk 0:00:13.3]} 70. Ke4 {[%clk 0:00:18.3]} 70... Ra2 {[%clk
0:00:13.2]} 71. f3 {[%clk 0:00:19.2]} 71... Re2+ {[%clk 0:00:13.7]} 72. Kf4
{[%clk 0:00:20.1]} 72... Rd2 {[%clk 0:00:14.9]} 73. Ke3 {[%clk 0:00:18.9]} 73...
Ra2 {[%clk 0:00:15]} 74. Rb5 {[%clk 0:00:19.9]} 74... Ra7 {[%clk 0:00:15.1]} 75.
g4 {[%clk 0:00:18.3]} 75... hxg4 {[%clk 0:00:11.6]} 76. fxg4 {[%clk 0:00:20.2]}
76... Ra3+ {[%clk 0:00:13.1]} 77. Ke4 {[%clk 0:00:19.1]} 77... Rh3 {[%clk
0:00:14.1]} 78. h5 {[%clk 0:00:19.7]} 78... f5+ {[%clk 0:00:13.2]} 79. gxf5
{[%clk 0:00:18.6]} 79... Rh4+ {[%clk 0:00:14.2]} 80. Kd3 {[%clk 0:00:18]} 80...
gxh5 {[%clk 0:00:15.6]} 81. Rb6+ {[%clk 0:00:17.5]} 81... Kd5 {[%clk 0:00:16.3]}
82. Rb5+ {[%clk 0:00:18.8]} 82... Kd6 {[%clk 0:00:17.4]} 83. Ke3 {[%clk
0:00:20.2]} 83... Rg4 {[%clk 0:00:16.7]} 84. Rb6+ {[%clk 0:00:19.3]} 84... Kd5
{[%clk 0:00:17.5]} 85. f6 {[%clk 0:00:18.3]} 85... Rg1 {[%clk 0:00:09.2]} 86.
Kf4 {[%clk 0:00:10.5]} 86... h4 {[%clk 0:00:09.1]} 87. Kf5 {[%clk 0:00:08.4]}
87... h3 {[%clk 0:00:09.5]} 88. Rb2 {[%clk 0:00:09.4]} 88... Rg2 {[%clk
0:00:09.1]} 89. Rb3 {[%clk 0:00:09.6]} 89... Rf2+ {[%clk 0:00:09.4]} 90. Kg6
{[%clk 0:00:09.9]} 90... h2 {[%clk 0:00:10.6]} 91. Rh3 {[%clk 0:00:10.8]} 91...
Ke6 {[%clk 0:00:11.9]} 92. d5+ {[%clk 0:00:11.4]} 92... Kxd5 {[%clk 0:00:13.1]}
93. f7 {[%clk 0:00:11.3]} 93... Ke6 {[%clk 0:00:14.3]} 94. Rxh2 {[%clk
0:00:12.7]} 94... Rf6+ {[%clk 0:00:13.9]} 95. Kg5 {[%clk 0:00:13.2]} 95... Rxf7
{[%clk 0:00:15.1]} 96. Re2+ {[%clk 0:00:13.6]} 96... Kd7 {[%clk 0:00:15.9]} 97.
Rd2+ {[%clk 0:00:14]} 97... Ke8 {[%clk 0:00:16.7]} 98. Re2+ {[%clk 0:00:14.4]}
98... Re7 {[%clk 0:00:18.2]} 99. Rxe7+ {[%clk 0:00:15.3]} 99... Kxe7 {[%clk
0:00:20.1]} 1/2-1/2

[Event "*** Biggest EVER Titled Tuesday"]
[Site "Chess.com"]
[Date "2018.04.17"]
[Round "7"]
[White "KNVB"]
[Black "MikaelyanArman"]
[Result "0-1"]
[WhiteElo "2586"]
[BlackElo "2604"]
[TimeControl "180+2"]
[EndTime "14:43:35 PDT"]
[Termination "MikaelyanArman won by checkmate"]

1. d4 {[%clk 0:03:01.6]} 1... d5 {[%clk 0:02:59]} 2. Bf4 {[%clk 0:02:31.6]} 2...
Nf6 {[%clk 0:02:59]} 3. e3 {[%clk 0:02:31.6]} 3... e6 {[%clk 0:02:59.5]} 4. Nf3
{[%clk 0:02:30.8]} 4... c5 {[%clk 0:02:59.2]} 5. c3 {[%clk 0:02:29.7]} 5... Nc6
{[%clk 0:03:00.1]} 6. Nbd2 {[%clk 0:02:29.7]} 6... Bd6 {[%clk 0:03:01]} 7. Bg3
{[%clk 0:02:30.2]} 7... O-O {[%clk 0:03:01.7]} 8. Bd3 {[%clk 0:02:28.3]} 8... b6
{[%clk 0:03:01.5]} 9. e4 {[%clk 0:02:29.4]} 9... Be7 {[%clk 0:02:24.4]} 10. e5
{[%clk 0:02:29.1]} 10... Nh5 {[%clk 0:02:24.9]} 11. Ng5 {[%clk 0:02:30.2]} 11...
Bxg5 {[%clk 0:02:13.2]} 12. Qxh5 {[%clk 0:02:30.8]} 12... g6 {[%clk 0:02:08.9]}
13. Qe2 {[%clk 0:02:31.7]} 13... cxd4 {[%clk 0:02:08.2]} 14. h4 {[%clk
0:02:31.9]} 14... Bh6 {[%clk 0:01:35.1]} 15. h5 {[%clk 0:02:32.2]} 15... Bg7
{[%clk 0:01:34.5]} 16. Nf3 {[%clk 0:02:07.9]} 16... dxc3 {[%clk 0:01:32.8]} 17.
bxc3 {[%clk 0:02:09.8]} 17... Ne7 {[%clk 0:01:26.2]} 18. Nd4 {[%clk 0:01:16.3]}
18... Nf5 {[%clk 0:01:18.4]} 19. Bxf5 {[%clk 0:01:15.5]} 19... exf5 {[%clk
0:01:16.9]} 20. hxg6 {[%clk 0:01:00.5]} 20... fxg6 {[%clk 0:01:03.2]} 21. f4
{[%clk 0:00:54.8]} 21... Qc7 {[%clk 0:00:59.3]} 22. Rc1 {[%clk 0:00:49.9]} 22...
a5 {[%clk 0:00:56.6]} 23. Kf2 {[%clk 0:00:47.4]} 23... Ba6 {[%clk 0:00:57.1]}
24. Qf3 {[%clk 0:00:40.2]} 24... Qc4 {[%clk 0:00:56.2]} 25. Bh4 {[%clk
0:00:32.9]} 25... Rae8 {[%clk 0:00:47.8]} 26. Rc2 {[%clk 0:00:15.5]} 26... Rf7
{[%clk 0:00:46.7]} 27. Bg5 {[%clk 0:00:13.7]} 27... h5 {[%clk 0:00:46.4]} 28.
Rd1 {[%clk 0:00:11.3]} 28... Rc7 {[%clk 0:00:40.7]} 29. Kg3 {[%clk 0:00:10.6]}
29... a4 {[%clk 0:00:31.7]} 30. Kh2 {[%clk 0:00:06]} 30... Qc5 {[%clk
0:00:32.8]} 31. Bf6 {[%clk 0:00:04]} 31... Bxf6 {[%clk 0:00:29.6]} 32. exf6
{[%clk 0:00:05.9]} 32... Qd6 {[%clk 0:00:30.7]} 33. Rcc1 {[%clk 0:00:03.7]}
33... Bc4 {[%clk 0:00:28.3]} 34. Re1 {[%clk 0:00:03.5]} 34... Re4 {[%clk
0:00:27.4]} 35. Rxe4 {[%clk 0:00:02.3]} 35... dxe4 {[%clk 0:00:28.4]} 36. Qg3
{[%clk 0:00:04.2]} 36... Qxf6 {[%clk 0:00:28.3]} 37. Rb1 {[%clk 0:00:05.2]}
37... h4 {[%clk 0:00:27]} 38. Qf2 {[%clk 0:00:03.9]} 38... Bd3 {[%clk 0:00:27]}
39. Rb4 {[%clk 0:00:03.8]} 39... Qd6 {[%clk 0:00:21.3]} 40. Rxa4 {[%clk
0:00:03.8]} 40... Kg7 {[%clk 0:00:15.9]} 41. Ra8 {[%clk 0:00:02.9]} 41... Qf6
{[%clk 0:00:11.7]} 42. Rb8 {[%clk 0:00:03.8]} 42... Re7 {[%clk 0:00:11.2]} 43.
Ra8 {[%clk 0:00:03.6]} 43... e3 {[%clk 0:00:12.3]} 44. Qe1 {[%clk 0:00:04]}
44... e2 {[%clk 0:00:13]} 45. Rd8 {[%clk 0:00:03.1]} 45... Rf7 {[%clk
0:00:12.2]} 46. Rd5 {[%clk 0:00:02.8]} 46... Re7 {[%clk 0:00:12]} 47. Nf3 {[%clk
0:00:03.3]} 47... Qe6 {[%clk 0:00:09.8]} 48. Re5 {[%clk 0:00:03.6]} 48... Qd6
{[%clk 0:00:11]} 49. Rxe7+ {[%clk 0:00:03]} 49... Qxe7 {[%clk 0:00:11.8]} 50.
Ne5 {[%clk 0:00:04.3]} 50... Ba6 {[%clk 0:00:11.4]} 51. c4 {[%clk 0:00:05.1]}
51... Qc5 {[%clk 0:00:06.8]} 52. Qxe2 {[%clk 0:00:05.3]} 52... Qd4 {[%clk
0:00:07.6]} 53. Qf3 {[%clk 0:00:04.2]} 53... Kh6 {[%clk 0:00:07.9]} 54. Nf7+
{[%clk 0:00:04.3]} 54... Kg7 {[%clk 0:00:08.5]} 55. Ng5 {[%clk 0:00:05.8]} 55...
Bc8 {[%clk 0:00:08.3]} 56. Nh3 {[%clk 0:00:03]} 56... Be6 {[%clk 0:00:08]} 57.
Qb7+ {[%clk 0:00:03.1]} 57... Bf7 {[%clk 0:00:09.2]} 58. Qc7 {[%clk 0:00:02.5]}
58... Qxc4 {[%clk 0:00:08.6]} 59. Qe5+ {[%clk 0:00:03]} 59... Kg8 {[%clk
0:00:07.5]} 60. Qb8+ {[%clk 0:00:03.3]} 60... Kg7 {[%clk 0:00:07.8]} 61. Qxb6
{[%clk 0:00:04.2]} 61... Qxa2 {[%clk 0:00:06.4]} 62. Qd4+ {[%clk 0:00:05.4]}
62... Kf8 {[%clk 0:00:07.6]} 63. Qh8+ {[%clk 0:00:05.7]} 63... Ke7 {[%clk
0:00:08]} 64. Qxh4+ {[%clk 0:00:07.2]} 64... Ke8 {[%clk 0:00:08.3]} 65. Qh8+
{[%clk 0:00:07]} 65... Kd7 {[%clk 0:00:09.1]} 66. Ng5 {[%clk 0:00:06.2]} 66...
Qc4 {[%clk 0:00:09.6]} 67. Qe5 {[%clk 0:00:05.8]} 67... Qd5 {[%clk 0:00:10.5]}
68. Qf6 {[%clk 0:00:04.2]} 68... Be8 {[%clk 0:00:11.2]} 69. Ne6 {[%clk
0:00:03.7]} 69... Qxe6 {[%clk 0:00:11.8]} 70. Qg7+ {[%clk 0:00:04.2]} 70... Qe7
{[%clk 0:00:12.4]} 71. Qd4+ {[%clk 0:00:05]} 71... Qd6 {[%clk 0:00:13.5]} 72.
Qg7+ {[%clk 0:00:06]} 72... Ke6 {[%clk 0:00:14.4]} 73. Kg3 {[%clk 0:00:06.7]}
73... Qd3+ {[%clk 0:00:14.7]} 74. Kh4 {[%clk 0:00:07.8]} 74... Qd8+ {[%clk
0:00:14.8]} 75. Kg3 {[%clk 0:00:09.2]} 75... Qe7 {[%clk 0:00:15.9]} 76. Qh8
{[%clk 0:00:08.7]} 76... Qa3+ {[%clk 0:00:15.1]} 77. Kh4 {[%clk 0:00:08.6]}
77... Qe7+ {[%clk 0:00:15.6]} 78. Kg3 {[%clk 0:00:09.9]} 78... Bf7 {[%clk
0:00:13.6]} 79. Qe5+ {[%clk 0:00:09.2]} 79... Kd7 {[%clk 0:00:14.8]} 80. Qb5+
{[%clk 0:00:10.3]} 80... Kc7 {[%clk 0:00:13.7]} 81. Qa5+ {[%clk 0:00:11.4]}
81... Kc8 {[%clk 0:00:13.2]} 82. Qa8+ {[%clk 0:00:12.3]} 82... Kd7 {[%clk
0:00:14.3]} 83. Qb7+ {[%clk 0:00:13.1]} 83... Ke8 {[%clk 0:00:14.9]} 84. Qb8+
{[%clk 0:00:12.8]} 84... Qd8 {[%clk 0:00:15.6]} 85. Qe5+ {[%clk 0:00:14.1]}
85... Kf8 {[%clk 0:00:16.1]} 86. Qh8+ {[%clk 0:00:15.1]} 86... Bg8 {[%clk
0:00:17.2]} 87. Qe5 {[%clk 0:00:16.1]} 87... Qe7 {[%clk 0:00:15.2]} 88. Qd4
{[%clk 0:00:13.5]} 88... Kf7 {[%clk 0:00:14.1]} 89. Qc3 {[%clk 0:00:11.5]} 89...
Qd6 {[%clk 0:00:12.8]} 90. Qc4+ {[%clk 0:00:07.2]} 90... Kg7 {[%clk 0:00:12.4]}
91. Qc3+ {[%clk 0:00:08.2]} 91... Kh7 {[%clk 0:00:13.4]} 92. Qe3 {[%clk
0:00:04.2]} 92... Bf7 {[%clk 0:00:13.8]} 93. Kh4 {[%clk 0:00:04.9]} 93... Qf6+
{[%clk 0:00:14.3]} 94. Kg3 {[%clk 0:00:05.9]} 94... Kg7 {[%clk 0:00:16.2]} 95.
Qc5 {[%clk 0:00:05.9]} 95... Qb2 {[%clk 0:00:16.1]} 96. Qd6 {[%clk 0:00:04.4]}
96... Qc3+ {[%clk 0:00:16.4]} 97. Kh2 {[%clk 0:00:05]} 97... Qf6 {[%clk
0:00:16.7]} 98. Qd2 {[%clk 0:00:03.5]} 98... Qh4+ {[%clk 0:00:17.3]} 99. Kg1
{[%clk 0:00:05]} 99... Qg3 {[%clk 0:00:19.2]} 100. Qd4+ {[%clk 0:00:05.5]}
100... Kh7 {[%clk 0:00:20.1]} 101. Qd7 {[%clk 0:00:03.3]} 101... Qe3+ {[%clk
0:00:17.1]} 102. Kh1 {[%clk 0:00:02.6]} 102... Kg7 {[%clk 0:00:17.9]} 103. Qd6
{[%clk 0:00:02.1]} 103... Qe4 {[%clk 0:00:17.5]} 104. Kh2 {[%clk 0:00:02.8]}
104... Bd5 {[%clk 0:00:17.9]} 105. Qc7+ {[%clk 0:00:03.6]} 105... Kh6 {[%clk
0:00:18.6]} 106. Kg3 {[%clk 0:00:02.4]} 106... Qxg2+ {[%clk 0:00:18.7]} 107. Kh4
{[%clk 0:00:03.5]} 107... Qg4# {[%clk 0:00:19.5]} 0-1

[Event "*** Biggest EVER Titled Tuesday"]
[Site "Chess.com"]
[Date "2018.04.17"]
[Round "8"]
[White "Eliwood44"]
[Black "Winehouse83"]
[Result "0-1"]
[WhiteElo "2119"]
[BlackElo "2333"]
[TimeControl "180+2"]
[EndTime "14:46:00 PDT"]
[Termination "Winehouse83 won by resignation"]

1. d4 {[%clk 0:03:01.9]} 1... Nf6 {[%clk 0:02:58.9]} 2. Nf3 {[%clk 0:02:53.4]}
2... g6 {[%clk 0:02:59.8]} 3. Nc3 {[%clk 0:02:40.4]} 3... Bg7 {[%clk 0:02:52.7]}
4. e4 {[%clk 0:02:40.4]} 4... d6 {[%clk 0:02:53.6]} 5. Be3 {[%clk 0:02:39.4]}
5... O-O {[%clk 0:02:50.9]} 6. Qd2 {[%clk 0:02:40.2]} 6... c6 {[%clk 0:02:52.1]}
7. Bd3 {[%clk 0:02:38.7]} 7... b5 {[%clk 0:02:52.7]} 8. Ne2 {[%clk 0:02:39.3]}
8... Nbd7 {[%clk 0:02:48]} 9. Ng3 {[%clk 0:02:38.8]} 9... Ng4 {[%clk 0:02:42.9]}
10. Bg5 {[%clk 0:02:38.7]} 10... f6 {[%clk 0:02:39.8]} 11. Be3 {[%clk 0:02:34]}
11... Nxe3 {[%clk 0:02:39.3]} 12. Qxe3 {[%clk 0:02:35.1]} 12... c5 {[%clk
0:02:38.6]} 13. d5 {[%clk 0:02:34.5]} 13... c4 {[%clk 0:02:39.6]} 14. Be2 {[%clk
0:02:35.4]} 14... f5 {[%clk 0:02:40.3]} 15. c3 {[%clk 0:02:35.1]} 15... f4
{[%clk 0:02:40.2]} 0-1

[Event "*** Biggest EVER Titled Tuesday"]
[Site "Chess.com"]
[Date "2018.04.17"]
[Round "8"]
[White "Rish_97"]
[Black "rekosheten"]
[Result "0-1"]
[WhiteElo "2262"]
[BlackElo "2288"]
[TimeControl "180+2"]
[EndTime "14:47:02 PDT"]
[Termination "rekosheten won by checkmate"]

1. c4 {[%clk 0:03:01.9]} 1... e5 {[%clk 0:02:59.9]} 2. Nc3 {[%clk 0:03:01.7]}
2... Bb4 {[%clk 0:03:01.3]} 3. g3 {[%clk 0:03:01.7]} 3... Bxc3 {[%clk 0:03:02]}
4. dxc3 {[%clk 0:03:01]} 4... d6 {[%clk 0:03:03.9]} 5. Bg2 {[%clk 0:03:01.1]}
5... Nc6 {[%clk 0:03:05.4]} 6. e4 {[%clk 0:03:01.4]} 6... f5 {[%clk 0:03:05.6]}
7. Ne2 {[%clk 0:03:03.3]} 7... fxe4 {[%clk 0:03:05.2]} 8. Bxe4 {[%clk 0:03:05]}
8... Nf6 {[%clk 0:02:59]} 9. Bg2 {[%clk 0:03:01]} 9... Be6 {[%clk 0:02:57]} 10.
b3 {[%clk 0:02:58.1]} 10... Qd7 {[%clk 0:02:57.9]} 11. Be3 {[%clk 0:02:54.6]}
11... Bh3 {[%clk 0:02:55.9]} 12. O-O {[%clk 0:02:53]} 12... h5 {[%clk
0:02:50.2]} 13. Qc2 {[%clk 0:02:35.5]} 13... O-O-O {[%clk 0:02:46.2]} 14. b4
{[%clk 0:02:26.3]} 14... h4 {[%clk 0:02:44.9]} 15. b5 {[%clk 0:02:17.6]} 15...
Bxg2 {[%clk 0:02:27.6]} 16. Kxg2 {[%clk 0:02:16.6]} 16... hxg3 {[%clk 0:02:28]}
17. hxg3 {[%clk 0:02:13.7]} 17... Qh3+ {[%clk 0:02:21.8]} 18. Kf3 {[%clk
0:02:14.1]} 18... e4+ {[%clk 0:02:21]} 19. Kf4 {[%clk 0:02:06.1]} 19... Qg4#
{[%clk 0:02:19.9]} 0-1

[Event "*** Biggest EVER Titled Tuesday"]
[Site "Chess.com"]
[Date "2018.04.17"]
[Round "8"]
[White "Robert_Chessmood"]
[Black "champ2005"]
[Result "1-0"]
[WhiteElo "2758"]
[BlackElo "2621"]
[TimeControl "180+2"]
[EndTime "14:48:11 PDT"]
[Termination "Robert_Chessmood won by resignation"]

1. e4 {[%clk 0:03:01.9]} 1... c6 {[%clk 0:03:00.4]} 2. d4 {[%clk 0:03:02.4]}
2... d5 {[%clk 0:03:01.3]} 3. exd5 {[%clk 0:03:04.3]} 3... cxd5 {[%clk
0:03:02.3]} 4. Nf3 {[%clk 0:03:06.2]} 4... Nc6 {[%clk 0:02:56.5]} 5. Bb5 {[%clk
0:03:07.1]} 5... Bd7 {[%clk 0:02:55.8]} 6. O-O {[%clk 0:03:05.9]} 6... e6 {[%clk
0:02:57]} 7. Re1 {[%clk 0:03:06.2]} 7... Nf6 {[%clk 0:02:55.1]} 8. c3 {[%clk
0:02:54.4]} 8... Be7 {[%clk 0:02:53]} 9. Bd3 {[%clk 0:02:51.5]} 9... O-O {[%clk
0:02:52.2]} 10. Bf4 {[%clk 0:02:51.8]} 10... a6 {[%clk 0:02:49.6]} 11. h3 {[%clk
0:02:52.7]} 11... b5 {[%clk 0:02:50.1]} 12. a3 {[%clk 0:02:52.8]} 12... Na5
{[%clk 0:02:41]} 13. Ne5 {[%clk 0:02:53]} 13... Nc4 {[%clk 0:02:41.9]} 14. Qe2
{[%clk 0:02:53.4]} 14... Qb6 {[%clk 0:02:30.8]} 15. Bg5 {[%clk 0:02:51.6]} 15...
Qb7 {[%clk 0:02:27.6]} 16. b3 {[%clk 0:02:48.1]} 16... Nb6 {[%clk 0:02:25.4]}
17. Nd2 {[%clk 0:02:47.7]} 17... Rfe8 {[%clk 0:02:22.9]} 18. Bxf6 {[%clk
0:02:38.7]} 18... Bxf6 {[%clk 0:02:22.7]} 19. Bxh7+ {[%clk 0:02:39.2]} 19...
Kxh7 {[%clk 0:02:11.2]} 20. Qh5+ {[%clk 0:02:38.7]} 20... Kg8 {[%clk 0:02:12.1]}
21. Qxf7+ {[%clk 0:02:40.6]} 21... Kh7 {[%clk 0:02:00]} 22. Ng4 {[%clk
0:02:29.3]} 22... Bg5 {[%clk 0:01:44.3]} 23. Nf3 {[%clk 0:02:21.4]} 23... Bh6
{[%clk 0:01:40.9]} 24. Nf6+ {[%clk 0:02:13.4]} 24... Kh8 {[%clk 0:01:40.9]} 25.
Ne5 {[%clk 0:02:09.4]} 1-0

[Event "*** Biggest EVER Titled Tuesday"]
[Site "Chess.com"]
[Date "2018.04.17"]
[Round "8"]
[White "maciek_92"]
[Black "albi1999"]
[Result "1-0"]
[WhiteElo "2589"]
[BlackElo "2378"]
[TimeControl "180+2"]
[EndTime "14:49:11 PDT"]
[Termination "maciek_92 won by resignation"]

1. c4 {[%clk 0:03:01.9]} 1... e6 {[%clk 0:03:00.3]} 2. d4 {[%clk 0:03:01.7]}
2... d5 {[%clk 0:03:02.2]} 3. Nc3 {[%clk 0:03:00.8]} 3... Nf6 {[%clk 0:03:03.7]}
4. Bg5 {[%clk 0:03:00.1]} 4... Be7 {[%clk 0:03:04]} 5. e3 {[%clk 0:02:59]} 5...
Nbd7 {[%clk 0:03:04.7]} 6. cxd5 {[%clk 0:02:57.5]} 6... Nxd5 {[%clk 0:03:03.4]}
7. Bxe7 {[%clk 0:02:50]} 7... Qxe7 {[%clk 0:03:01.5]} 8. Bd3 {[%clk 0:02:50.9]}
8... Nxc3 {[%clk 0:03:00.2]} 9. bxc3 {[%clk 0:02:50]} 9... c5 {[%clk 0:03:01.1]}
10. Ne2 {[%clk 0:02:47.7]} 10... O-O {[%clk 0:03:02.3]} 11. O-O {[%clk
0:02:47.9]} 11... b6 {[%clk 0:03:03.7]} 12. e4 {[%clk 0:02:46.2]} 12... Bb7
{[%clk 0:03:03.9]} 13. Ng3 {[%clk 0:02:41.9]} 13... Rfd8 {[%clk 0:03:01.2]} 14.
Qe2 {[%clk 0:02:38.3]} 14... cxd4 {[%clk 0:03:00.6]} 15. cxd4 {[%clk 0:02:38.8]}
15... Nb8 {[%clk 0:02:53.8]} 16. d5 {[%clk 0:02:34.3]} 16... exd5 {[%clk
0:02:53.7]} 17. e5 {[%clk 0:02:35.6]} 17... Nc6 {[%clk 0:02:52.1]} 18. Rfe1
{[%clk 0:02:34.8]} 18... Re8 {[%clk 0:02:42.9]} 19. f4 {[%clk 0:02:35.3]} 19...
Qc5+ {[%clk 0:02:41.5]} 20. Kh1 {[%clk 0:02:36.2]} 20... Nb4 {[%clk 0:02:37]}
21. Rac1 {[%clk 0:02:31.3]} 21... Qd4 {[%clk 0:02:36.5]} 22. Bb5 {[%clk
0:02:11.4]} 22... Rec8 {[%clk 0:02:28.7]} 23. e6 {[%clk 0:02:06.4]} 23... Rxc1
{[%clk 0:01:48.3]} 24. Rxc1 {[%clk 0:02:03.7]} 24... Qxf4 {[%clk 0:01:45.5]} 25.
Rf1 {[%clk 0:02:02.1]} 25... Qd6 {[%clk 0:01:32.9]} 26. Rxf7 {[%clk 0:01:59.3]}
26... Rf8 {[%clk 0:01:11.1]} 27. Nf5 {[%clk 0:01:51.9]} 27... Qf4 {[%clk
0:01:06]} 28. Ne7+ {[%clk 0:01:49.5]} 28... Kh8 {[%clk 0:01:06.9]} 29. Rxf4
{[%clk 0:01:48.6]} 1-0

[Event "*** Biggest EVER Titled Tuesday"]
[Site "Chess.com"]
[Date "2018.04.17"]
[Round "8"]
[White "BIG_Pirate"]
[Black "gmtalentoso"]
[Result "1-0"]
[WhiteElo "2279"]
[BlackElo "2130"]
[TimeControl "180+2"]
[EndTime "14:49:39 PDT"]
[Termination "BIG_Pirate won by resignation"]

1. Nf3 {[%clk 0:03:01.9]} 1... g6 {[%clk 0:02:56.9]} 2. c4 {[%clk 0:03:02.8]}
2... c5 {[%clk 0:02:56.3]} 3. Nc3 {[%clk 0:03:03.8]} 3... Bg7 {[%clk 0:02:56.5]}
4. g3 {[%clk 0:03:05.1]} 4... Nc6 {[%clk 0:02:57.4]} 5. Bg2 {[%clk 0:03:06.4]}
5... e6 {[%clk 0:02:58.3]} 6. O-O {[%clk 0:03:07.3]} 6... Nge7 {[%clk
0:02:59.3]} 7. d4 {[%clk 0:03:07.9]} 7... Nxd4 {[%clk 0:02:54.8]} 8. Nxd4 {[%clk
0:03:07.1]} 8... cxd4 {[%clk 0:02:53.7]} 9. Nb5 {[%clk 0:03:07.7]} 9... d5
{[%clk 0:02:54.7]} 10. cxd5 {[%clk 0:03:03.3]} 10... Nxd5 {[%clk 0:02:55.3]} 11.
Nxd4 {[%clk 0:03:03.5]} 11... O-O {[%clk 0:02:55.5]} 12. e4 {[%clk 0:03:04.5]}
12... Nb4 {[%clk 0:02:53]} 13. Be3 {[%clk 0:03:01.2]} 13... e5 {[%clk
0:02:38.6]} 14. Nb5 {[%clk 0:03:01.2]} 14... Nc6 {[%clk 0:02:30.3]} 15. Qxd8
{[%clk 0:02:36]} 15... Rxd8 {[%clk 0:02:29.1]} 16. Nc7 {[%clk 0:02:37.9]} 16...
Rb8 {[%clk 0:02:27.1]} 17. Rfd1 {[%clk 0:02:39.2]} 17... Bg4 {[%clk 0:02:18.7]}
18. f3 {[%clk 0:02:33.2]} 18... Bd7 {[%clk 0:02:10.8]} 19. Bf1 {[%clk
0:02:31.7]} 19... Rbc8 {[%clk 0:02:06.5]} 20. Nd5 {[%clk 0:02:32.2]} 20... Be6
{[%clk 0:02:00]} 21. Bc4 {[%clk 0:02:28.9]} 21... b6 {[%clk 0:01:48.3]} 22. Rac1
{[%clk 0:02:21.4]} 22... h6 {[%clk 0:01:39.6]} 23. Ba6 {[%clk 0:02:18.2]} 23...
Kh7 {[%clk 0:00:52.7]} 24. Bxc8 {[%clk 0:02:17.6]} 24... Rxc8 {[%clk 0:00:53.6]}
25. Rc3 {[%clk 0:02:10.2]} 25... Na5 {[%clk 0:00:41.3]} 26. Rxc8 {[%clk
0:02:10.3]} 26... Bxc8 {[%clk 0:00:42.4]} 27. b3 {[%clk 0:02:11.2]} 27... f5
{[%clk 0:00:40]} 28. Rc1 {[%clk 0:02:08]} 28... Be6 {[%clk 0:00:38.5]} 29. Rc7
{[%clk 0:02:08.4]} 29... fxe4 {[%clk 0:00:39]} 30. fxe4 {[%clk 0:01:48.6]} 1-0